bitfinex-derivatives/quotes_SOLF0:USTF0_20251202
["timestamp","ask_amount","ask_price","bid_price","bid_amount"]
[1764634014314,0.05838227,126.58,126.56,7.1678235]
[1764634014800,3.19838227,126.58,126.56,7.1678235]
[1764634015403,3.19838227,126.58,126.56,0.0563235]
[1764634016508,3.19838227,126.58,126.56,7.1679235]
[1764634016814,0.05838227,126.58,126.56,7.1679235]
[1764634021018,3.14,126.63,126.59,7.1095]
[1764634022016,0.0509308,126.62,126.6,0.05328141]
[1764634022813,0.0509308,126.62,126.61,74.8289]
[1764634023817,0.0009308,126.62,126.61,74.8289]
[1764634024018,7.1042,126.7,126.61,74.8289]
[1764634024019,3.14,126.7,126.64,110.556]
[1764634024216,3.14,126.7,126.65,67.72]
[1764634024920,0.05903174,126.69,126.66,0.052018]
[1764634025106,3.19903174,126.69,126.66,0.052018]
[1764634025310,3.19903174,126.69,126.66,7.157718]
[1764634025824,0.05903174,126.69,126.66,7.157718]
[1764634026511,0.05903174,126.69,126.67,7.1051]
[1764634027720,0.05903174,126.69,126.68,67.72]
[1764634029618,3.41,126.77,126.69,110.5116]
[1764634029809,3.41,126.75,126.71,110.4959]
[1764634030009,4.59021521,126.74,126.71,178.2159]
[1764634030327,3.41,126.78,126.73,110.4766]
[1764634030625,4.63886907,126.77,126.74,0.05994228]
[1764634030927,4.58786649,126.76,126.75,7.1008]
[1764634031623,6.649e-05,126.76,126.75,7.1008]
[1764634032706,7.0957,126.85,126.77,110.4425]
[1764634032707,10.70205226,126.85,126.77,110.4425]
[1764634032913,5.82769882,126.84,126.79,110.4258]
[1764634033115,3.41,126.85,126.79,110.4258]
[1764634033316,3.41,126.84,126.79,110.4258]
[1764634033716,0.05769503,126.83,126.8,0.0531191]
[1764634034316,0.05769503,126.83,126.81,67.72]
[1764634034921,0.05769503,126.83,126.81,185.2261]
[1764634035122,9.22703738,126.89,126.81,178.1288]
[1764634035421,3.41,126.89,126.82,7.0966]
[1764634036022,3.41,126.89,126.81,67.72]
[1764634036318,3.47017699,126.86,126.84,0.05155713]
[1764634036508,3.46186148,126.86,126.84,0.05122815]
[1764634037420,0.05186148,126.86,126.84,0.05122815]
[1764634038321,0.05186148,126.86,126.84,7.14692815]
[1764634038816,0.05186148,126.86,126.84,117.52982815]
[1764634040316,3.41,126.92,126.87,7.0941]
[1764634040516,3.41,126.92,126.84,110.3829]
[1764634040816,3.41,126.92,126.84,178.1029]
[1764634041016,3.41,126.92,126.86,7.0946]
[1764634041223,0.0499598,126.9,126.88,0.05284262]
[1764634043217,3.4599598,126.9,126.88,0.05284262]
[1764634044330,0.0499598,126.9,126.88,0.05284262]
[1764634045021,0.0499598,126.9,126.89,7.0932]
[1764634045422,3.41,126.96,126.89,110.3369]
[1764634045627,4.3312413,126.95,126.91,7.0921]
[1764634045827,3.41,126.99,126.91,7.0921]
[1764634046130,3.41,126.97,126.91,7.0921]
[1764634046427,5.83661897,127.01,126.93,0.05787128]
[1764634046428,0.05834362,126.95,126.93,0.05787128]
[1764634047325,0.05834362,126.95,126.93,74.86837128]
[1764634047524,0.05834362,126.95,126.93,185.17297128]
[1764634048521,0.05834362,126.95,126.93,117.45297128]
[1764634048821,3.41,127.01,126.94,74.8099]
[1764634049829,3.11356418,126.99,126.96,0.05418899]
[1764634052925,3.11356418,126.99,126.97,7.0885]
[1764634053527,3.11356418,126.99,126.96,0.05418899]
[1764634053923,0.02356418,126.99,126.96,0.05418899]
[1764634054721,3.11356418,126.99,126.96,0.05418899]
[1764634058932,3.32,126.98,126.88,110.3473]
[1764634059240,3.32,126.98,126.88,178.0273]
[1764634059537,3.32,126.98,126.91,110.3216]
[1764634059739,3.32,126.98,126.89,110.3339]
[1764634059938,3.32,126.95,126.93,0.05140132]
[1764634060141,3.3731451,126.95,126.93,0.06017932]
[1764634066338,7.55807614,126.94,126.93,0.06017932]
[1764634066939,3.32,126.93,126.88,67.68]
[1764634067246,3.32,126.91,126.85,110.37]
[1764634067446,3.32,126.89,126.85,110.37]
[1764634067644,3.32,126.89,126.85,7.0951]
[1764634067837,0.05724592,126.88,126.86,0.05136678]
[1764634068551,0.05724592,126.88,126.86,7.14586678]
[1764634071341,4.2664385,126.87,126.86,7.14586678]
[1764634073350,0.05724592,126.88,126.86,7.14586678]
[1764634074551,0.05724592,126.88,126.86,0.05136678]
[1764634074552,3.37724592,126.88,126.86,0.05136678]
[1764634074750,9.11576228,126.87,126.86,0.05136678]
[1764634077055,5.79576228,126.87,126.86,0.05136678]
[1764634078161,9.11576228,126.87,126.86,0.05136678]
[1764634081162,3.32,126.86,126.82,110.396]
[1764634081355,9.83268815,126.89,126.82,110.396]
[1764634081356,3.32,126.89,126.84,110.3781]
[1764634081553,5.84081891,126.88,126.85,110.3699]
[1764634081755,3.32,126.89,126.85,110.3699]
[1764634081950,5.84098761,126.88,126.85,110.3699]
[1764634082150,0.0563061,126.88,126.85,110.42347757]
[1764634082355,0.0563061,126.88,126.87,7.0938]
[1764634082561,3.3763061,126.88,126.87,7.0938]
[1764634082755,9.2195393,126.88,126.87,7.0938]
[1764634083563,3.32,126.87,126.85,7.14857757]
[1764634083761,5.8995393,126.88,126.85,7.14857757]
[1764634083762,9.16443355,126.86,126.85,0.05357757]
[1764634083960,3.32,126.85,126.8,178.1349]
[1764634084655,3.32,126.85,126.81,7.0973]
[1764634084656,5.84185102,126.84,126.81,7.0973]
[1764634084862,3.32,126.83,126.81,7.0973]
[1764634085061,3.32,126.83,126.81,7.15199272]
[1764634086267,3.32,126.81,126.73,110.4712]
[1764634086558,3.32,126.79,126.73,110.4712]
[1764634086962,3.32,126.79,126.75,7.1006]
[1764634087156,3.32,126.77,126.76,0.05784909]
[1764634087558,3.32,126.77,126.73,7.1021]
[1764634088161,3.32,126.77,126.74,7.1014]
[1764634088664,3.32,126.77,126.74,7.15159409]
[1764634089866,3.32,126.77,126.75,7.1007]
[1764634091255,3.32,126.77,126.74,0.05019409]
[1764634093752,3.32,126.77,126.7,110.5025]
[1764634093753,3.32,126.77,126.7,7.1036]
[1764634093950,3.32,126.77,126.68,178.2964]
[1764634094154,3.32,126.77,126.7,7.1036]
[1764634094867,3.24,126.74,126.72,0.05100837]
[1764634095164,3.24,126.74,126.72,0.05305497]
[1764634096563,0.05419036,126.75,126.72,0.05305497]
[1764634096564,3.29419036,126.75,126.72,0.05305497]
[1764634097266,3.29419036,126.75,126.72,7.15555497]
[1764634099470,0.05419036,126.75,126.73,7.1019]
[1764634099664,0.05419036,126.75,126.73,117.5801]
[1764634099863,0.05419036,126.75,126.73,7.1019]
[1764634102969,3.29419036,126.75,126.73,7.1019]
[1764634104670,3.29419036,126.75,126.72,0.05305497]
[1764634109266,0.05419036,126.75,126.72,0.05305497]
[1764634110175,0.05419036,126.75,126.73,7.102]
[1764634112368,3.18419036,126.75,126.73,7.102]
[1764634114175,3.18419036,126.75,126.72,0.05305497]
[1764634116466,3.18419036,126.75,126.73,7.1021]
[1764634116768,3.18419036,126.75,126.72,0.05305497]
[1764634117766,3.18419036,126.75,126.72,7.15555497]
[1764634125782,3.18419036,126.75,126.73,7.1021]
[1764634127590,9.40095299,126.74,126.73,7.1021]
[1764634128988,6.07095299,126.74,126.73,7.1021]
[1764634130796,6.07095299,126.74,126.72,0.05305497]
[1764634130985,6.07095299,126.73,126.72,0.05305497]
[1764634132397,6.07095299,126.73,126.72,7.15565497]
[1764634133400,0.05419036,126.75,126.74,7.1016]
[1764634133606,9.48538081,126.75,126.74,7.1016]
[1764634133895,6.15538081,126.75,126.74,7.1016]
[1764634134096,13.7758105,126.75,126.74,7.1016]
[1764634134300,9.48538081,126.75,126.74,7.1016]
[1764634136105,9.48538081,126.75,126.72,7.15535497]
[1764634136400,6.10119045,126.74,126.72,7.15535497]
[1764634136602,3.38419036,126.75,126.72,0.05305497]
[1764634136796,9.40810226,126.74,126.72,0.05305497]
[1764634137000,3.33,126.74,126.72,0.05305497]
[1764634137202,0.05419036,126.75,126.72,0.05305497]
[1764634137401,6.0786407,126.74,126.73,7.1021]
[1764634139306,9.4086407,126.74,126.73,7.1021]
[1764634140310,13.73928928,126.74,126.73,7.1021]
[1764634140809,9.4086407,126.74,126.73,7.1021]
[1764634141417,0.05419036,126.75,126.73,7.1021]
[1764634141706,6.07968512,126.74,126.73,7.1021]
[1764634141908,3.38419036,126.75,126.73,7.1021]
[1764634144604,0.05419036,126.75,126.73,7.1021]
[1764634144905,0.05419036,126.75,126.73,74.7821]
[1764634147512,3.33,126.79,126.77,7.0999]
[1764634147714,6.07658532,126.78,126.77,7.0999]
[1764634149209,9.22658532,126.78,126.77,7.0999]
[1764634150011,3.15,126.77,126.76,0.06017124]
[1764634150313,3.15,126.76,126.69,67.66]
[1764634150516,3.15,126.74,126.69,67.66]
[1764634150704,3.15,126.72,126.71,7.1032]
[1764634151013,3.15,126.75,126.71,7.1032]
[1764634151210,3.15,126.73,126.72,0.05220887]
[1764634151410,9.22049525,126.73,126.72,0.05220887]
[1764634152413,3.15,126.73,126.72,0.05220887]
[1764634154408,9.21973442,126.73,126.72,0.05220887]
[1764634155211,6.06973442,126.73,126.72,0.05220887]
[1764634155418,3.20207246,126.74,126.73,7.1022]
[1764634155607,9.27761965,126.74,126.73,7.1022]
[1764634155804,13.61497247,126.74,126.73,7.1022]
[1764634156316,9.27761965,126.74,126.73,7.1022]
[1764634156819,9.27761965,126.74,126.72,0.05220887]
[1764634157018,6.07554719,126.73,126.72,0.05220887]
[1764634160626,3.20207246,126.74,126.72,7.15450887]
[1764634162025,6.08887287,126.73,126.72,7.15450887]
[1764634163124,9.23887287,126.73,126.72,7.15450887]
[1764634163922,6.08887287,126.73,126.72,7.15450887]
[1764634164122,0.05207246,126.74,126.72,7.15450887]
[1764634165619,0.05207246,126.74,126.72,9.25747565]
[1764634167528,3.15,126.78,126.75,7.1005]
[1764634167716,6.12781871,126.77,126.75,7.1005]
[1764634167915,3.15,126.79,126.74,178.1068]
[1764634168122,6.12835802,126.78,126.74,178.1068]
[1764634168320,6.12835802,126.77,126.74,178.1068]
[1764634168520,3.15,126.79,126.74,178.1068]
[1764634168726,9.33029117,126.78,126.75,0.05899674]
[1764634169026,6.12726835,126.77,126.75,0.05899674]
[1764634169228,3.20302282,126.78,126.75,0.05899674]
[1764634169428,6.12649499,126.77,126.76,7.1]
[1764634170032,3.20302282,126.78,126.76,7.1]
[1764634170233,6.12634212,126.77,126.76,7.1]
[1764634171120,6.12634212,126.77,126.75,0.05899674]
[1764634171323,3.38302282,126.78,126.75,0.05899674]
[1764634171530,6.12499435,126.77,126.75,0.05899674]
[1764634171731,3.38302282,126.78,126.75,0.05899674]
[1764634171933,6.12499435,126.77,126.75,0.05899674]
[1764634172132,3.38302282,126.78,126.75,0.05899674]
[1764634172338,9.454532,126.77,126.75,7.15989674]
[1764634172533,0.05302282,126.78,126.75,0.05899674]
[1764634172534,9.45357654,126.76,126.75,0.05899674]
[1764634172728,3.33,126.76,126.75,0.05899674]
[1764634173130,3.38302282,126.78,126.75,0.05899674]
[1764634173334,6.12391604,126.77,126.75,0.05899674]
[1764634173535,3.38302282,126.78,126.75,0.05899674]
[1764634173834,9.45401215,126.77,126.75,0.05899674]
[1764634174034,3.33,126.77,126.75,0.05899674]
[1764634175137,3.33,126.77,126.75,7.15989674]
[1764634177632,6.12347647,126.76,126.75,7.15989674]
[1764634177832,3.33,126.77,126.75,7.15989674]
[1764634178030,6.12394373,126.76,126.75,7.15989674]
[1764634178428,3.33,126.77,126.75,7.15989674]
[1764634179037,6.12390016,126.76,126.75,7.15989674]
[1764634180535,3.33,126.77,126.75,7.15989674]
[1764634181547,6.11748053,126.76,126.75,7.15989674]
[1764634182036,9.23748053,126.76,126.75,0.05899674]
[1764634183842,13.56056166,126.76,126.75,0.05899674]
[1764634187245,9.23748053,126.76,126.75,0.05899674]
[1764634188242,13.55885306,126.76,126.75,0.05899674]
[1764634188751,3.12,126.75,126.73,67.6]
[1764634189045,3.12,126.75,126.71,7.1028]
[1764634189251,3.12,126.73,126.71,7.1028]
[1764634189847,3.17579359,126.73,126.71,7.15952514]
[1764634190449,7.34230496,126.77,126.74,7.1014]
[1764634190644,3.12,126.77,126.72,110.4836]
[1764634191450,3.12,126.77,126.74,7.1012]
[1764634191651,3.16995589,126.76,126.74,7.1012]
[1764634191847,3.16995589,126.76,126.74,7.15515126]
[1764634195262,0.04995589,126.76,126.74,7.15515126]
[1764634196057,3.16995589,126.76,126.74,7.15515126]
[1764634197168,0.04995589,126.76,126.74,7.15515126]
[1764634201868,3.16995589,126.76,126.74,7.15515126]
[1764634202361,3.16995589,126.76,126.74,0.05395126]
[1764634204565,0.04995589,126.76,126.74,0.05395126]
[1764634204765,3.16995589,126.76,126.74,0.05395126]
[1764634206063,6.05621996,126.75,126.74,0.05395126]
[1764634206270,9.17621996,126.75,126.74,0.05395126]
[1764634214275,9.36621996,126.75,126.74,0.05395126]
[1764634214670,9.36777137,126.75,126.74,0.05395126]
[1764634215681,13.67958266,126.75,126.74,0.05395126]
[1764634216179,10.36958266,126.75,126.74,0.05395126]
[1764634216379,0.04995589,126.76,126.74,0.05395126]
[1764634216781,0.04995589,126.76,126.75,7.101]
[1764634217180,6.10934918,126.76,126.75,7.101]
[1764634217582,0.04995589,126.76,126.75,7.101]
[1764634218083,6.11005694,126.76,126.75,7.101]
[1764634218786,0.04995589,126.76,126.75,7.101]
[1764634221181,3.31,126.79,126.77,7.0995]
[1764634221385,6.05723038,126.78,126.77,7.0995]
[1764634222385,7.34833557,126.81,126.79,7.0985]
[1764634222386,3.31,126.81,126.79,7.0985]
[1764634222583,6.05017669,126.8,126.79,7.0985]
[1764634224186,3.36915276,126.81,126.79,7.0985]
[1764634225188,0.05915276,126.81,126.79,7.0985]
[1764634225685,3.36915276,126.81,126.79,7.0985]
[1764634227586,0.05915276,126.81,126.79,7.0985]
[1764634228786,3.36915276,126.81,126.79,7.0985]
[1764634246586,0.05915276,126.81,126.79,7.0985]
[1764634250197,3.23,126.86,126.83,7.0965]
[1764634250498,3.23,126.86,126.81,110.4059]
[1764634250894,3.23,126.86,126.83,7.0961]
[1764634251195,3.2851862,126.86,126.83,7.15530213]
[1764634253198,3.2851862,126.86,126.84,7.0959]
[1764634253693,0.0551862,126.86,126.84,7.0959]
[1764634255697,3.2851862,126.86,126.83,0.05920213]
[1764634257703,3.23,126.84,126.83,0.05920213]
[1764634259101,9.28172948,126.84,126.83,0.05920213]
[1764634260411,13.6184695,126.84,126.83,0.05920213]
[1764634261211,9.28172948,126.84,126.83,0.05920213]
[1764634261911,13.6208024,126.84,126.83,0.05920213]
[1764634266813,13.6208024,126.84,126.78,110.4301]
[1764634266814,3.23,126.83,126.78,7.0993]
[1764634266999,3.23,126.81,126.78,7.0993]
[1764634267813,3.23,126.81,126.78,7.1593398]
[1764634267814,3.28290983,126.81,126.78,7.1593398]
[1764634269212,3.28290983,126.81,126.78,0.0600398]
[1764634269518,9.37204522,126.8,126.78,0.0600398]
[1764634269710,3.3,126.8,126.78,0.0600398]
[1764634276524,10.64833557,126.85,126.79,2.10096612]
[1764634276719,3.3,126.83,126.79,2.10096612]
[1764634277417,7.34833557,126.87,126.79,2.10096612]
[1764634277621,7.34833557,126.87,126.82,0.05532298]
[1764634277622,3.35426617,126.84,126.82,0.05532298]
[1764634279325,3.3,126.89,126.84,110.3804]
[1764634279529,6.05857815,126.88,126.85,2.10096612]
[1764634279825,3.3,126.89,126.85,2.10096612]
[1764634280026,9.35854532,126.88,126.85,2.10096612]
[1764634280219,3.36043411,126.88,126.85,2.15294772]
[1764634280416,3.36043411,126.88,126.86,7.0949]
[1764634281627,0.06043411,126.88,126.86,7.0949]
[1764634283230,0.06043411,126.88,126.87,2.10096612]
[1764634283446,3.3,126.92,126.87,179.97526612]
[1764634284327,3.3,126.92,126.89,7.0929]
[1764634284531,0.04994272,126.91,126.89,7.0929]
[1764634288730,3.34994272,126.91,126.89,7.0929]
[1764634289127,0.04994272,126.91,126.89,7.0929]
[1764634289939,3.34994272,126.91,126.89,7.0929]
[1764634291435,0.04994272,126.91,126.89,7.0929]
[1764634300632,3.16,126.95,126.91,7.0921]
[1764634301746,3.20020108,126.94,126.92,0.05073178]
[1764634305042,3.20020108,126.94,126.89,7.0928]
[1764634305043,3.16,126.92,126.89,7.0928]
[1764634306049,3.16,126.92,126.89,7.14945731]
[1764634313156,3.16,126.92,126.89,0.05665731]
[1764634313352,3.16,126.9,126.8,110.4126]
[1764634313553,3.16,126.87,126.8,177.8726]
[1764634313848,3.16,126.85,126.8,67.46]
[1764634314043,3.16,126.85,126.77,2.10096612]
[1764634314244,3.16,126.83,126.8,0.05644018]
[1764634314443,3.16,126.82,126.8,0.05854312]
[1764634315550,0.05499403,126.83,126.8,0.05854312]
[1764634316253,0.05499403,126.83,126.8,7.15664312]
[1764634321566,3.21499403,126.83,126.8,7.15664312]
[1764634322264,3.21499403,126.83,126.8,0.05854312]
[1764634322565,3.16,126.81,126.8,0.05854312]
[1764634344284,3.16,126.81,126.76,7.1002]
[1764634344498,3.2,126.79,126.76,7.1002]
[1764634345384,3.25679839,126.79,126.76,0.05648264]
[1764634349290,3.2,126.77,126.68,110.5163]
[1764634349482,3.2,126.75,126.68,110.5163]
[1764634349682,3.2,126.73,126.68,110.5163]
[1764634350084,0.05226995,126.72,126.7,7.1037]
[1764634350782,0.05226995,126.72,126.7,10.38613882]
[1764634350979,3.28,126.75,126.73,7.102]
[1764634351194,3.28,126.8,126.74,110.4699]
[1764634351493,13.70625411,126.79,126.74,113.75233882]
[1764634351694,3.28,126.81,126.76,113.73333882]
[1764634352088,3.28,126.81,126.77,0.05199934]
[1764634352089,0.04985328,126.8,126.77,0.05199934]
[1764634352490,3.32985328,126.8,126.77,0.05199934]
[1764634353397,3.32985328,126.8,126.78,7.0991]
[1764634353980,3.32985328,126.8,126.78,10.38153882]
[1764634356691,0.04985328,126.8,126.78,10.38153882]
[1764634364403,0.04985328,126.8,126.78,7.0991]
[1764634364607,0.04985328,126.8,126.79,3.28243882]
[1764634366001,7.29594115,126.85,126.79,70.78243882]
[1764634366202,13.6174916,126.84,126.82,3.28243882]
[1764634366497,3.14,126.84,126.82,3.28243882]
[1764634366695,3.14,126.86,126.82,3.28243882]
[1764634366895,3.14,126.84,126.82,3.28243882]
[1764634367096,3.19844182,126.84,126.82,3.33899964]
[1764634367599,0.05844182,126.84,126.82,77.93569964]
[1764634367800,3.14,126.88,126.82,70.83899964]
[1764634367996,13.61449953,126.87,126.85,3.28243882]
[1764634368197,6.08255524,126.86,126.85,3.28243882]
[1764634368499,3.14,126.87,126.85,3.28243882]
[1764634368903,3.19045541,126.87,126.85,3.33486654]
[1764634369498,3.19045541,126.87,126.85,0.05242772]
[1764634381011,3.19045541,126.87,126.85,7.14752772]
[1764634381203,3.19045541,126.87,126.86,3.28243882]
[1764634381809,0.05045541,126.87,126.86,3.28243882]
[1764634385431,0.05045541,126.87,126.85,7.14752772]
[1764634386019,3.19045541,126.87,126.85,7.14752772]
[1764634386517,0.05045541,126.87,126.86,3.28243882]
[1764634388930,3.30045541,126.87,126.85,7.14752772]
[1764634390331,3.30045541,126.87,126.85,0.05242772]
[1764634400737,0.05045541,126.87,126.86,2.09848517]
[1764634401036,3.25,126.89,126.86,2.09848517]
[1764634401234,3.25,126.89,126.88,2.09848517]
[1764634401442,9.33430693,126.89,126.88,2.09848517]
[1764634403538,3.25,126.88,126.86,2.09848517]
[1764634403739,3.25,126.88,126.85,2.15091289]
[1764634403933,3.25,126.86,126.85,2.15091289]
[1764634404338,3.30159547,126.87,126.85,2.15091289]
[1764634406140,3.30159547,126.87,126.85,0.05242772]
[1764634406336,13.72174285,126.86,126.85,0.05242772]
[1764634407436,13.72174285,126.86,126.85,0.00242772]
[1764634407638,3.25,126.85,126.8,2.09848517]
[1764634407843,3.25,126.83,126.77,2.09848517]
[1764634408046,3.25,126.81,126.77,2.09848517]
[1764634408738,3.30951172,126.8,126.78,0.05904597]
[1764634409344,0.05951172,126.8,126.79,2.09848517]
[1764634412241,10.67594115,126.85,126.8,7.0978]
[1764634412242,3.38,126.85,126.8,7.0978]
[1764634412546,3.38,126.86,126.83,2.09848517]
[1764634412735,7.29594115,126.89,126.85,2.09848517]
[1764634412736,3.38,126.88,126.85,2.09848517]
[1764634412934,10.44401529,126.87,126.85,2.09848517]
[1764634413135,0.04451147,126.87,126.85,2.1499342]
[1764634413345,3.42451147,126.87,126.85,2.1499342]
[1764634414240,3.42451147,126.87,126.85,0.05144903]
[1764634414445,9.46544794,126.86,126.85,0.05144903]
[1764634415141,6.08544794,126.86,126.85,0.05144903]
[1764634415339,0.04451147,126.87,126.85,0.05144903]
[1764634415738,3.42451147,126.87,126.85,0.05144903]
[1764634417443,9.46440619,126.86,126.85,0.05144903]
[1764634417843,0.04451147,126.87,126.85,0.05144903]
[1764634418043,9.46372698,126.86,126.85,0.05144903]
[1764634426345,6.08372698,126.86,126.85,0.05144903]
[1764634426551,3.23451147,126.87,126.85,2.1499342]
[1764634427050,6.08518427,126.86,126.85,2.1499342]
[1764634427350,9.27518427,126.86,126.85,2.1499342]
[1764634428051,3.19,126.86,126.85,2.1499342]
[1764634428650,13.62858829,126.86,126.85,0.05144903]
[1764634430750,13.62858829,126.86,126.85,0.00144903]
[1764634439066,9.27563917,126.86,126.85,0.00144903]
[1764634439446,6.08563917,126.86,126.85,0.00144903]
[1764634439855,6.08563917,126.86,126.85,2.0999342]
[1764634441065,0.04451147,126.87,126.85,2.0999342]
[1764634441361,3.23451147,126.87,126.85,2.0999342]
[1764634441964,3.23451147,126.87,126.85,0.00144903]
[1764634442264,3.19,126.91,126.87,110.3525]
[1764634442563,3.19,126.92,126.88,2.09848517]
[1764634443359,0.05,126.91,126.89,7.14672781]
[1764634445964,3.24,126.91,126.89,7.14672781]
[1764634449465,3.24,126.91,126.89,0.05382781]
[1764634450960,5.33848517,126.91,126.89,0.05382781]
[1764634451260,3.15,126.89,126.85,67.44]
[1764634451962,5.24848517,126.89,126.85,67.44]
[1764634452164,3.20871545,126.88,126.86,0.05909029]
[1764634453871,3.15,126.86,126.82,7.0967]
[1764634454166,3.15,126.86,126.8,110.4134]
[1764634454761,0.05310195,126.84,126.82,0.05514636]
[1764634455369,0.05310195,126.84,126.83,7.0965]
[1764634457168,0.05310195,126.84,126.82,0.05514636]
[1764634458270,0.05310195,126.84,126.82,7.15214636]
[1764634462874,3.20310195,126.84,126.82,7.15214636]
[1764634464076,0.05310195,126.84,126.83,67.44]
[1764634466670,3.20310195,126.84,126.83,67.44]
[1764634467179,0.05310195,126.84,126.83,67.44]
[1764634467879,3.20310195,126.84,126.83,67.44]
[1764634472780,3.20310195,126.84,126.82,7.15214636]
[1764634472781,3.20310195,126.84,126.82,0.05514636]
[1764634472987,3.2,126.83,126.74,110.4657]
[1764634473187,3.2,126.81,126.75,51.28]
[1764634473385,3.2,126.81,126.75,74.48004661]
[1764634473589,3.2,126.81,126.76,7.1003]
[1764634473986,0.05324086,126.8,126.77,0.05901372]
[1764634474574,0.05324086,126.8,126.77,7.15881372]
[1764634475989,3.25324086,126.8,126.77,0.05901372]
[1764634481405,3.25324086,126.8,126.73,67.44]
[1764634481702,3.14,126.78,126.69,177.9728]
[1764634482307,3.14,126.78,126.7,7.1036]
[1764634482502,3.14,126.74,126.73,0.05080278]
[1764634483805,3.19690635,126.75,126.73,0.05080278]
[1764634487700,3.19690635,126.75,126.69,7.104]
[1764634488803,3.19690635,126.75,126.68,110.5154]
[1764634488804,3.19690635,126.75,126.71,0.05890646]
[1764634489311,3.14,126.73,126.68,7.1046]
[1764634490206,3.28003615,126.74,126.68,7.1046]
[1764634490207,3.14,126.71,126.69,0.05449306]
[1764634493313,3.14,126.71,126.65,7.1062]
[1764634494217,3.14,126.71,126.66,7.1059]
[1764634494509,3.14,126.71,126.64,23.94262049]
[1764634494510,0.05873876,126.69,126.67,0.05869916]
[1764634494713,3.14,126.74,126.68,110.5221]
[1764634494915,3.14,126.74,126.7,7.1037]
[1764634495802,3.19098297,126.73,126.71,0.05664111]
[1764634498922,3.19098297,126.73,126.71,7.15974111]
[1764634499112,0.05098297,126.73,126.71,7.15974111]
[1764634500708,0.05098297,126.73,126.71,8.73974111]
[1764634500914,3.28003615,126.84,126.74,110.4696]
[1764634500915,3.14,126.78,126.74,110.4696]
[1764634501114,7.35756832,126.83,126.75,110.4612]
[1764634501315,3.14,126.81,126.75,110.4612]
[1764634501621,3.14,126.84,126.78,110.4333]
[1764634501806,0.05607668,126.82,126.8,0.06012393]
[1764634502005,0.05014437,126.82,126.8,7.15822393]
[1764634502217,7.36054342,126.86,126.81,110.4084]
[1764634502410,3.14,126.86,126.81,110.4084]
[1764634502612,3.14,126.89,126.81,110.4084]
[1764634502815,9.15569638,126.88,126.81,110.4084]
[1764634503017,3.14,126.88,126.81,110.4084]
[1764634503211,177.8099,126.93,126.84,110.3775]
[1764634503212,3.14,126.91,126.84,110.3775]
[1764634503415,0.05256337,126.89,126.86,0.05796164]
[1764634504413,3.19256337,126.89,126.86,0.05796164]
[1764634512641,3.33,126.87,126.76,110.4454]
[1764634512933,3.33,126.87,126.77,67.5]
[1764634513135,3.33,126.87,126.77,74.5998]
[1764634513525,3.33,126.82,126.81,0.05576606]
[1764634515134,3.38357038,126.83,126.81,0.05576606]
[1764634515443,0.05357038,126.83,126.81,0.05576606]
[1764634517031,3.38357038,126.83,126.81,0.05576606]
[1764634517733,3.38357038,126.83,126.72,119.61299071]
[1764634518036,3.33,126.83,126.72,177.9832]
[1764634518232,3.33,126.82,126.72,74.6024]
[1764634518426,3.33,126.81,126.72,74.6024]
[1764634518626,5.83940369,126.83,126.72,74.6024]
[1764634518627,3.33,126.8,126.72,67.5]
[1764634518830,0.05032477,126.77,126.75,0.05534119]
[1764634521036,3.33,126.8,126.75,110.51594119]
[1764634521238,3.33,126.83,126.76,177.9692]
[1764634521638,3.33,126.87,126.79,110.4222]
[1764634522242,0.05100038,126.84,126.82,0.05058711]
[1764634523038,0.05100038,126.84,126.82,7.14738711]
[1764634528940,3.38100038,126.84,126.82,0.05058711]
[1764634531145,3.33,126.83,126.75,110.4557]
[1764634531440,3.33,126.83,126.75,177.9757]
[1764634532033,3.33,126.83,126.78,0.05873052]
[1764634532238,0.05291796,126.8,126.78,0.05873052]
[1764634533335,0.05291796,126.8,126.78,7.15793052]
[1764634536745,3.33,126.85,126.82,7.0968]
[1764634536941,3.33,126.85,126.8,110.4171]
[1764634536942,3.33,126.88,126.81,177.9273]
[1764634537349,3.33,126.88,126.84,7.0959]
[1764634537735,0.05660993,126.87,126.85,0.05853507]